Workbook

Sheet Раздел 1
H1: Приказ Министерства финансов РФ от "31" августа 2018г. №186Н
J2: УТВЕРЖДАЮ
J4: Начальник Управления дошкольного образования ИК НМР РТ
J8: _______________________ С.А.Андрианова | Y8: С.А.Андрианова
J9: (подпись) | Y9: (расшифровка подписи)
J10: "____"________________________2021г. | O10: " | AG10: 20 | AJ10: 20 | AM10: г.
B12: План финансово-хозяйственной деятельности
B13: на 2021 год и плановый период 2022 и 2023 годов | L13: Коды
E14: от «01» января 2021г. | K14: Дата | L14: 01.01.2021
J15: по Сводному реестру | L15: 92320523
K16: ИНН | L16: 1651028946
B17: Учреждение | C17: Муниципальное бюджетное дошкольное образовательное учреждение "Детский сад "Тансылу" с.Ташлык" НМР РТ | J17: КПП | L17: 165101001
B18: Орган, осуществляющий | J18: по Сводному реестру
B19: функции и полномочия учредителя _____________________________________________________________________________________________ | D19: Исполнительный комитет Нижнекамского муниципального района РТ | J19: глава по БК
B20: Вид документа | C20: 0
E21: (первичный - «0», уточненный - «1», «2», «3», «…») 2
B22: Единица измерения: руб | J22: по ОКЕИ | L22: 383
B23: Раздел 1. Поступления и выплаты
B24: Наименование показателя | F24: Код строки | G24: Код по бюджетной классификации Российской Федерации3 | H24: Сумма
H25: на 2021 г. текущий финансовый год | I25: на 2022 г. первый год планового периода | K25: на 2023 г. второй год планового периода | L25: за пределами планового периода
B26: 1 | F26: 2 | G26: 3 | H26: 4 | I26: 5 | K26: 6 | L26: 7
B27: Остаток средств на начало текущего финансового года 4 | F27: 0001 | G27: х | H27: 178,372.97
B28: Остаток средств на конец текущего финансового года 4 | F28: 0002 | G28: х
B29: Поступления, всего: | F29: 1000 | G29: х | H29: 6,875,550.99 | I29: =I31 -> 6,962,547.72 | K29: =K31 -> 7,021,811.84
B30: в том числе: доходы от собственности | F30: 1100 | G30: 120
B31: доходы от оказания услуг, работ, компенсации затрат учреждений, всего | F31: 1200 | G31: 130 | H31: 6,875,550.99 | I31: =I32+I34 -> 6,962,547.72 | K31: =K32+K34 -> 7,021,811.84
B32: из них: субсидии на финансовое обеспечение выполнения государственного(муниципального) задания за счет средств федерального бюджета | F32: 1210 | G32: 130 | H32: 6,847,470.99 | I32: =I56-I34 -> 6,934,467.72 | K32: =K56-K34 -> 6,993,731.84
B33: субсидии на финансовое обеспечение выполнения государственного задания за счет средств бюджета Федерального фонда обязательного медицинского страхования | F33: 1220 | G33: 130
B34: от приносящей доход деятельности | F34: 1230 | G34: 130 | H34: 28,080.00 | I34: 28,080.00 | K34: 28,080.00
B35: доходы от штрафов, пеней, иных сумм принудительного изъятия | F35: 1300 | G35: 140
B36: безвозмездные денежные поступления, всего | F36: 1400 | G36: 150
B37: из них: целевые субсидии | F37: 1410 | G37: 150
B38: субсидии на осуществление капитальных вложений | F38: 1420 | G38: 150
B39: гранты, гранты в форме субсидий, пожертвования, иные безвозмездные перечисления от физических и юридических лиц, в том числе иностранных организаций | F39: 1430 | G39: 150
B40: прочие доходы | F40: 1500 | G40: 180
B41: доходы от операций с активами, всего | F41: 1600 | G41: х
B42: в том числе: доходы от операций с нефинансовыми активами, всего | F42: 1610 | G42: 400
B43: в том числе: доходы от выбытия основных средств | F43: 1611 | G43: 410
B44: доходы от выбытия нематериальных активов | F44: 1612 | G44: 420
B45: доходы от выбытия непроизведенных активов | F45: 1613 | G45: 430
B46: доходы от выбытия материальных запасов | F46: 1614 | G46: 440
B47: поступления от операций с финансовыми активами, всего | F47: 1620 | G47: 600
B48: в том числе: поступление средств от реализации векселей, облигаций и иных ценных бумаг (кроме акций) | F48: 1621 | G48: 620
B49: поступления от продажи акций и иных форм участия в капитале, находящихся в федеральной собственности | F49: 1622 | G49: 630
B50: возврат денежных средств с иных финансовых активов, в том числе со счетов управляющих компаний | F50: 1623 | G50: 650
B51: прочие поступления, всего5 | F51: 1700 | G51: х
B52: из них: увеличение остатков денежных средств | F52: 1710 | G52: 510 | L52: х
B53: поступление средств в рамках расчетов между головным учреждением и обособленным подразделением6 | F53: 1720 | G53: 510
B54: поступление средств от погашения предоставленных ранее ссуд, кредитов | F54: 1730 | G54: 640
B55: получение ссуд, кредитов (заимствований) | F55: 1740 | G55: 710
B56: Выплаты, всего | F56: 2000 | G56: х | H56: =H57+H86+H72 -> 7,053,923.96 | I56: =I57+I72+I86 -> 6,962,547.72 | K56: =K57+K72+K86 -> 7,021,811.84
B57: в том числе: на выплаты персоналу, всего | F57: 2100 | G57: х | H57: =H58+H61 -> 4,718,725.74 | I57: =I58+I61 -> 4,718,725.74 | K57: =K58+K61 -> 4,718,725.74
B58: в том числе: оплата труда | F58: 2110 | G58: 111 | H58: 3,624,213.32 | I58: 3,624,213.32 | K58: 3,624,213.32 | L58: х
B59: прочие выплаты персоналу, в том числе компенсационного характера | F59: 2120 | G59: 112 | L59: х
B60: иные выплаты, за исключением фонда оплаты труда учреждения, для выполнения отдельных полномочий | F60: 2130 | G60: 113 | L60: х
B61: взносы по обязательному социальному страхованию на выплаты по оплате труда работников и иные выплаты работникам учреждений | F61: 2140 | G61: 119 | H61: 1,094,512.42 | I61: 1,094,512.42 | K61: 1,094,512.42 | L61: х
B62: денежное довольствие военнослужащих и сотрудников, имеющих специальные звания | F62: 2150 | G62: 131 | L62: х
B63: выплаты военнослужащим и сотрудникам, имеющим специальные звания, зависящие от размера денежного довольствия | F63: 2160 | G63: 133
B64: иные выплаты военнослужащим и сотрудникам, имеющим специальные звания | F64: 2170 | G64: 134 | L64: х
B65: взносы на обязательное социальное страхование в части выплат персоналу, подлежащих обложению страховыми взносами | F65: 2180 | G65: 139 | L65: х
B66: социальные и иные выплаты населению, всего | F66: 2200 | G66: 300 | L66: х
B67: в том числе: пособия, компенсации и иные социальные выплаты гражданам, кроме публичных нормативных обязательств | F67: 2210 | G67: 321 | L67: х
B68: приобретение товаров, работ, услуг в пользу граждан в целях их социального обеспечения | F68: 2220 | G68: 323
B69: выплата стипендий, осуществление иных расходов на социальную поддержку обучающихся за счет средств стипендиального фонда | F69: 2230 | G69: 340 | L69: х
B70: на премирование физических лиц за достижения в области культуры, искусства, образования, науки и техники, а также на предоставление грантов с целью поддержки проектов в области науки, культуры и искусства | F70: 2240 | G70: 350 | L70: х
B71: иные выплаты населению | F71: 2250 | G71: 360 | L71: х
B72: уплата налогов, сборов и иных платежей, всего | F72: 2300 | G72: 850 | H72: =H73+H75 -> 562,551.00 | I72: =I73 -> 562,551.00 | K72: =K73 -> 562,551.00 | L72: х
B73: из них: налог на имущество организаций и земельный налог | F73: 2310 | G73: 851 | H73: 562,551.00 | I73: 562,551.00 | K73: 562,551.00 | L73: х
B74: иные налоги (включаемые в состав расходов) в бюджеты бюджетной системы Российской Федерации, а также государственная пошлина | F74: 2320 | G74: 852 | L74: х
B75: уплата штрафов (в том числе административных), пеней, иных платежей | F75: 2330 | G75: 853 | L75: х
B76: безвозмездные перечисления организациям и физическим лицам, всего | F76: 2400 | G76: х | L76: х
B77: из них: гранты, предоставляемые бюджетным учреждениям | F77: 2410 | G77: 613
B78: гранты, предоставляемые автономным учреждениям | F78: 2420 | G78: 623
B79: гранты, предоставляемые иным некоммерческим организациям (за исключением бюджетных и автономных учреждений) | F79: 2430 | G79: 634
B80: гранты юридическим лицам (кроме некоммерческих организаций), индивидуальным предпринимателям | F80: 2440 | G80: 814 | L80: х
B81: взносы в международные организации | F81: 2450 | G81: 862 | L81: х
B82: платежи в целях обеспечения реализации соглашений с правительствами иностранных государств и международными организациями | F82: 2460 | G82: 863 | L82: х
B83: прочие выплаты (кроме выплат на закупку товаров, работ, услуг), всего | F83: 2500 | G83: х | L83: х
B84: в том числе: исполнение судебных актов Российской Федерации и мировых соглашений по возмещению вреда, причиненного в результате деятельности учреждения | F84: 2510 | G84: 831 | L84: х
B85: исполнение судебных актов судебных органов иностранных государств, международных судов и арбитражей, мировых соглашений, заключенных в рамках судебных процессов в судебных органах иностранных государств, в международных судах и арбитражах | F85: 2520 | G85: 832
B86: расходы на закупку товаров, работ, услуг, всего 7 | F86: 2600 | G86: х | H86: =H90+H98 -> 1,772,647.22 | I86: =I90+I98 -> 1,681,270.98 | K86: =K90+K98 -> 1,740,535.10
B87: из них: закупку научно-исследовательских, опытно-конструкторских и технологических работ | F87: 2610 | G87: 241
B88: закупку товаров, работ, услуг в целях капитального ремонта государственного (муниципального) имущества | F88: 2620 | G88: 243
B89: прочую закупку товаров, работ и услуг | F89: 2630 | G89: 244
B90: из них: | H90: =H91+H92+H93+H94+H95+H96 -> 861,170.84 | I90: =I91+I92+I93+I94+I95+I96 -> 733,335.54 | K90: =K91+K92+K93+K94+K95+K96 -> 754,682.24
B91: услуги связи | F91: 2631 | G91: 244 | H91: 20,875.46 | I91: 20,200.00 | K91: 20,200.00
B92: коммунальные услуги | F92: 2632 | G92: 244 | H92: 36,160.50 | I92: 37,606.92 | K92: 39,111.20
B93: работы, услуги по содержанию имущества | F93: 2633 | G93: 244 | H93: 167,862.42 | I93: 160,968.17 | K93: 160,968.17
B94: прочие работы, услуги | F94: 2634 | G94: 244 | H94: 614,272.46 | I94: 492,420.45 | K94: 512,117.27
B95: увеличение стоимости лекарственных препаратов и материалов | F95: 2635 | G95: 244 | H95: 3,500.00 | I95: 3,640.00 | K95: 3,785.60
B96: увеличение стоимости материальных запасов | F96: 2636 | G96: 244 | H96: 18,500.00 | I96: 18,500.00 | K96: 18,500.00
B97: закупку товаров, работ и услуг для обеспечения государственных (муниципальных) нужд в области геодезии и картографии вне рамок государственного оборонного заказа | F97: 2640 | G97: 245
B98: закупку энергетических ресурсов | F98: 2650 | G98: 247 | H98: =H100 -> 911,476.38 | I98: =I100 -> 947,935.44 | K98: =K100 -> 985,852.86
B99: из них:
B100: коммунальные услуги | F100: 2651 | G100: 247 | H100: 911,476.38 | I100: 947,935.44 | K100: 985,852.86
B101: капитальные вложения в объекты государственной (муниципальной) собственности, всего | F101: 2700 | G101: 400
B102: в том числе: приобретение объектов недвижимого имущества | F102: 2710 | G102: 406
B103: строительство (реконструкция) объектов недвижимого имущества | F103: 2720 | G103: 407
B104: Выплаты, уменьшающие доход, всего 8 | F104: 3000 | G104: х | L104: х
B105: в том числе: налог на прибыль 8 | F105: 3010 | G105: 180 | L105: х
B106: налог на добавленную стоимость 8 | F106: 3020 | G106: 180 | L106: х
B107: прочие налоги, уменьшающие доход 8 | F107: 3030 | G107: 180 | L107: х
B108: Прочие выплаты, всего 9 | F108: 4000 | G108: х | L108: х
B109: в том числе: уменьшение остатков денежных средств | F109: 4010 | G109: 610 | L109: х
B110: перечисление средств в рамках расчетов между головным учреждением и обособленным подразделением10 | F110: 4020 | G110: 610
B111: вложение денежных средств в векселя, облигации и иные ценные бумаги (кроме акций) | F111: 4030 | G111: 520
B112: вложение денежных средств в акции и иные финансовые инструменты | F112: 4040 | G112: 530
B113: предоставление ссуд, кредитов (заимствований) | F113: 4050 | G113: 540
B114: возврат ссуд, кредитов (заимствований) | F114: 4060 | G114: 810
B117: 1 Указывается дата вступления в силу Плана (изменений в План).
B118: 2 При представлении уточненного Плана указывается номер очередного внесения изменения в приложение (например, «1», «2», «3», «...»).
B119: 3 В графе 3 отражаются: по строкам 1100 – 1600 - коды аналитической группы подвида доходов бюджетов классификации доходов бюджетов; по строкам 1710 – 1740 - коды аналитической группы вида источников финансирования дефицитов бюджетов классификации источников финансирования дефицитов бюджетов; по строкам 2000 – 2642- коды видов расходов бюджетов классификации расходов бюджетов; по строкам 3000 – 3030 - коды аналитической группы подвида доходов бюджетов классификации доходов бюджетов, по которым планируется уплата налогов, уменьшающих доход (в том числе налог на прибыль, налог на добавленную стоимость, единый налог на вмененный доход для отдельных видов деятельности); по строкам 4000 – 4060 - коды аналитической группы вида источников финансирования дефицитов бюджетов классификации источников финансирования дефицитов бюджетов.
B120: 4 По строкам 0001 и 0002 указываются планируемые суммы остатков средств на начало и на конец планируемого года, если указанные показатели по решению органа, осуществляющего функции и полномочия учредителя, планируются на этапе формирования проекта Плана либо указываются фактические остатки средств при внесении изменений в утвержденный План после завершения отчетного финансового года.
B121: 5 Показатели прочих поступлений включают в себя, в том числе показатели увеличения денежных средств за счет возврата дебиторской задолженности прошлых лет, включая возврат предоставленных займов (микрозаймов), а также за счет возврата средств, размещенных на банковских депозитах. При формировании Плана (проекта Плана) обособленному(ым) подразделению(ям) показатель прочих поступлений включает показатель поступлений в рамках расчетов между головным учреждением и обособленным подразделением.
B122: 6 По строке 1720 отражается поступление денежных средств в рамках расчетов между головным учреждением и обособленным(и) подразделением(ями). Показатель формируется в случае, если учреждением принято решение об утверждении Плана обособленному подразделению. Показатель формируется в плане головного учреждения и обособленного подразделения. Показатель в Плане, утверждаемом учреждением по юридическому лицу, содержащем сводные показатели Плана, не формируется.
B123: 7 Показатели выплат по расходам на закупку товаров, работ, услуг, отраженные в строке 26000 Раздела 1 «Поступления и выплаты» Плана, подлежат детализации в Разделе 2 «Сведения по выплатам на закупку товаров, работ, услуг» Плана.
B124: 8 Показатель отражается со знаком «минус».
B125: 9 Показатели прочих выплат включают в себя, в том числе показатели уменьшения денежных средств за счет возврата средств субсидий, предоставленных до начала текущего финансового года, предоставления займов (микрозаймов), размещения автономными учреждениями денежных средств на банковских депозитах. При формировании Плана (проекта Плана) обособленному(ым) подразделению(ям) показатель прочих выплат включает показатель поступлений в рамках расчетов между головным учреждением и обособленным подразделением.
B126: 10 По строке 4020 отражается выбытие денежных средств в рамках расчетов между головным учреждением и обособленным(и) подразделением(ями). Показатель формируется в случае, если учреждением принято решение об утверждении Плана обособленному подразделению. Показатель формируется в плане головного учреждения и обособленного подразделения. Показатель в Плане, утверждаемом учреждением по юридическому лицу, содержащем сводные показатели Плана не формируется.

Sheet Раздел 2
B1: Раздел 2. Сведения по выплатам на закупку товаров, работ, услуг11
B3: № пункта, подпункта | C3: Наименование показателя | H3: Коды строк | I3: Год начала закупки | J3: Код по бюджетной классификации Российской Федерации 12 | K3: Уникальный код13 | L3: Сумма
L4: на 2021 г. (текущий финансовый год) | M4: на 2022 г. (первый год планового периода) | N4: на 2023 г. (второй год планового периода) | O4: за пределами планового периода
B5: 1 | C5: 2 | H5: 3 | I5: 4 | J5: 5 | K5: 6 | L5: 7 | M5: 8 | N5: 9 | O5: 10
B6: 1 | C6: Выплаты на закупку товаров, работ, услуг, всего 14 | H6: 260000 | I6: х | J6: х | K6: х | L6: ='Раздел 1'!H86 -> 1,772,647.22 | M6: ='Раздел 1'!I86 -> 1,681,270.98 | N6: ='Раздел 1'!K86 -> 1,740,535.10
B7: 1.1. | C7: в том числе: в соответствии с Федеральным законом № 44-ФЗ, всего | H7: 261000 | I7: х | J7: х | K7: х
B8: 1.2. | C8: по контрактам (договорам), планируемым к заключению в соответствующем финансовом году без применения норм Федерального закона № 44-ФЗ и Федерального закона № 223-ФЗ15 | H8: 262000 | I8: х | J8: х | K8: х
B9: 1.3. | C9: по контрактам (договорам), заключенным до начала текущего финансового года с учетом требований Федерального закона № 44-ФЗ и Федерального закона № 223-ФЗ, всего 16 | H9: 263000 | I9: х | J9: х | K9: х | L9: 1,326,377.80
B10: 1.3.1. | C10: в том числе: в соответствии с Федеральным законом № 44-ФЗ, всего | H10: 263100 | I10: х | J10: х | K10: х
C11: из них12:
C13: из них13:
B15: 1.3.2. | C15: в соответствии с Федеральным законом № 223-ФЗ | H15: 263200 | I15: х | J15: х | K15: х
B16: 1.4. | C16: по контрактам (договорам), планируемым к заключению в соответствующем финансовом году с учетом требований Федерального закона № 44-ФЗ и Федерального закона № 223-ФЗ, всего 16 | H16: 264000 | I16: х | J16: х | K16: х | L16: =L6-L9 -> 446,269.42 | M16: =M6 -> 1,681,270.98 | N16: =N6 -> 1,740,535.10
B17: 1.4.1 | C17: в том числе: за счет субсидий, предоставляемых на финансовое обеспечение выполнения государственного задания, всего | H17: 264100 | I17: х | J17: х | K17: х | L17: =L18 -> 418,189.42 | M17: =M16-M32 -> 1,653,190.98 | N17: =N16-N32 -> 1,712,455.10
B18: 1.4.1.1. | C18: в том числе: в соответствии с Федеральным законом № 44-ФЗ | H18: 264110 | I18: х | J18: х | K18: х | L18: =L16-L32 -> 418,189.42 | M18: =M17 -> 1,653,190.98 | N18: =N17 -> 1,712,455.10
B19: 1.4.1.2. | C19: в соответствии с Федеральным законом № 223-ФЗ17 | H19: 264120 | I19: х | J19: х | K19: х
B20: 1.4.2. | C20: за счет субсидий, предоставляемых в соответствии с абзацем вторым пункта 1 статьи 78.1 Бюджетного кодекса Российской Федерации, всего | H20: 264200 | I20: х | J20: х | K20: х
B21: 1.4.2.1 | C21: в том числе: в соответствии с Федеральным законом № 44-ФЗ | H21: 264210 | I21: х | J21: х | K21: х
C22: из них12: | I22: х | K22: х
B23: 1.4.2.2. | C23: в соответствии с Федеральным законом № 223-ФЗ17 | H23: 264220 | I23: х | J23: х | K23: х
B24: 1.4.3. | C24: за счет субсидий, предоставляемых на осуществление капитальных вложений18 | H24: 264300 | I24: х | J24: х | K24: х
C25: из них12: | I25: х
I26: х
C27: из них13: | I27: х
B29: 1.4.4. | C29: за счет средств обязательного медицинского страхования, всего | H29: 264400 | I29: х | J29: х | K29: х
B30: 1.4.4.1. | C30: в том числе: в соответствии с Федеральным законом № 44-ФЗ | H30: 264410 | I30: х | J30: х | K30: х
B31: 1.4.4.2. | C31: в соответствии с Федеральным законом № 223-ФЗ17 | H31: 264420 | I31: х | J31: х | K31: х
B32: 1.4.5. | C32: за счет прочих источников финансового обеспечения, всего | H32: 264500 | I32: х | J32: х | K32: х | L32: 28,080.00 | M32: 28,080.00 | N32: 28,080.00
B33: 1.4.5.1. | C33: в том числе: в соответствии с Федеральным законом № 44-ФЗ | H33: 264510 | I33: х | J33: х | K33: х | L33: 28,080.00 | M33: 28,080.00 | N33: 28,080.00
C34: из них13: | I34: х
I35: х
B36: 1.4.5.2. | C36: в соответствии с Федеральным законом № 223-ФЗ | H36: 264520 | I36: х | J36: х | K36: х
B37: 2. | C37: Итого по контрактам, планируемым к заключению в соответствующем финансовом году в соответствии с Федеральным законом № 44-ФЗ, по соответствующему году закупки, всего19 | H37: 265000 | I37: х | J37: х | K37: х | L37: =L6 -> 1,772,647.22 | M37: =M6 -> 1,681,270.98 | N37: 1,740,535.10
C38: в том числе по году начала закупки: | H38: 265100 | I38: 2021 2022 2023 | J38: х | K38: х | L38: =L37 -> 1,772,647.22 | M38: =M37 -> 1,681,270.98 | N38: =N37 -> 1,740,535.10
B39: 3. | C39: Итого по договорам, планируемым к заключению в соответствующем финансовом году в соответствии с Федеральным законом № 223-ФЗ, по соответствующему году закупки | H39: 266000 | I39: х | J39: х | K39: х
C40: в том числе по годам начала закупки: | H40: 266100 | J40: х | K40: х
K41: х
B44: Руководитель
B45: (уполномоченное лицо) | F45: заведующий МБДОУ | G45: А.Р.Даминова
F46: (должность) (подпись) (расшифровка подписи)
B48: Исполнитель | F48: ведущий бухгалтер | G48: А.Р.Маркелова 42-51-03
F49: (должность) (подпись) (телефон) | G49: (фамилия, инициалы) (телефон)
B51: «___» ___________ 20___ г.20
B53: СОГЛАСОВАНО
B54: Руководитель департамента по бюджету и финансам НМР РТ | G54: ___________________ С.Н.Логинова
B55: (наименование должностного лица органа - учредителя) | G55: (подпись) (расшифровка подписи)
B57: «___» ___________ 20___ г.
B59: ________________________________________________________________
B60: 11 В Разделе 2 «Сведения по выплатам на закупку товаров, работ, услуг» Плана детализируются показатели выплат по расходам на закупку товаров, работ, услуг, отраженные по соответствующим строкам Раздела 1 «Поступления и выплаты» Плана.
B61: 12 В случаях, если учреждению предоставляются субсидия на иные цели, субсидия на осуществление капитальных вложений или гранты в форме субсидий в соответствии с абзацем первым пункта 4 статьи 78.1 Бюджетного кодекса Российской Федерации в целях достижения результатов федерального проекта, в том числе входящего в состав соответствующего национального проекта (программы), определенного Указом Президента Российской Федерации от 7 мая 2018 г. № 204 «О национальных целях и стратегических задачах развития Российской Федерации на период до 2024 года» (Собрание законодательства Российской Федерации, 2018, № 20, ст. 2817; 2020, № 30, ст. 4884) (далее - федеральный проект), или регионального проекта, обеспечивающего достижение целей, показателей и результатов федерального проекта (далее - региональный проект), показатели строк 263100, 264210, 264300 и 264510 Раздела 2 «Сведения по выплатам на закупку товаров, работ, услуг» Плана дополнительно детализируются по коду основного мероприятия целевой статьи расходов (11 - 12 разряды кода классификации расходов бюджетов) и коду направления расходов целевой статьи расходов (13 - 17 разряды кода классификации расходов бюджетов).
B62: 13Указывается уникальный код объекта капитального строительства, объекта недвижимого имущества.
B63: 14 Плановые показатели выплат на закупку товаров, работ, услуг по строке 260000 Раздела 2 «Сведения по выплатам на закупку товаров, работ, услуг» Плана распределяются на выплаты по контрактам (договорам), заключенным (планируемым к заключению) в соответствии с гражданским законодательством Российской Федерации (строки 261000 и 262000), а также по контрактам (договорам), заключаемым в соответствии с требованиями законодательства Российской Федерации и иных нормативных правовых актов о контрактной системе в сфере закупок товаров, работ, услуг для государственных и муниципальных нужд, с детализацией указанных выплат по контрактам (договорам), заключенным до начала текущего финансового года (строка 263000) и планируемым к заключению в соответствующем финансовом году (строка 264000) и должны соответствовать показателям соответствующих граф по строке 2600 Раздела 1 «Поступления и выплаты» Плана.
B64: 15 Указывается сумма договоров (контрактах) о закупках товаров, работ, услуг, заключенных без учета требований Федерального закона № 44-ФЗ и Федерального закона № 223-ФЗ, в случаях предусмотренных указанными федеральными законами.
B65: 16 Указывается сумма закупок товаров, работ, услуг, осуществляемых в соответствии с Федеральным законом № 44-ФЗ и Федеральным законом № 223-ФЗ.
B66: 17 Федеральным государственным бюджетным учреждением показатель не формируется.
B67: 18 Указывается сумма закупок товаров, работ, услуг, осуществляемых в соответствии с Федеральным законом № 44-ФЗ.
B68: 19 Плановые показатели выплат на закупку товаров, работ, услуг по строке 265000 федерального государственного бюджетного учреждения должен быть не менее суммы показателей строк 264100, 264200, 264300, 264400 по соответствующей графе, федерального государственного автономного учреждения - не менее показателя строки 264300 по соответствующей графе.
B69: 20 Указывается дата подписания Плана руководителем (уполномоченным лицом) учреждения.
B70: 21 Указывается, если решением органа - учредителя установлено требование о согласовании Плана.
